bitfinex/quotes_SOLUSD_20230702
["timestamp","ask_amount","ask_price","bid_price","bid_amount"]
[1688340122157,55.0,19.504,19.496,21.696]
[1688340122464,21.689,19.503,19.496,21.696]
[1688340131889,21.689,19.503,19.495,21.697]
[1688340132063,55.0,19.502,19.495,21.697]
[1688340132260,21.692,19.5,19.495,21.697]
[1688340132571,21.692,19.5,19.495,20.697]
[1688340137382,55.826,19.507,19.496,20.0]
[1688340137685,21.687,19.505,19.499,21.693]
[1688340139080,21.685,19.506,19.499,21.693]
[1688340141466,55.0,19.505,19.499,21.693]
[1688340141668,21.688,19.504,19.499,21.693]
[1688340142585,76.686,19.505,19.499,21.693]
[1688340144772,55.0,19.505,19.499,21.693]
[1688340145084,47.44182661,19.51,19.499,21.693]
[1688340145384,21.681,19.51,19.499,21.693]
[1688340146587,21.683,19.508,19.499,21.693]
[1688340146784,76.682,19.509,19.499,21.693]
[1688340150691,21.682,19.509,19.499,21.693]
[1688340150984,55.802,19.516,19.5,21.94]
[1688340151188,21.677,19.513,19.503,77.521]
[1688340162692,21.677,19.513,19.503,21.687]
[1688340162908,55.0,19.512,19.501,112.5599]
[1688340163210,21.682,19.509,19.501,112.5599]
[1688340164788,21.682,19.509,19.501,21.69]
[1688340165003,21.685,19.506,19.501,21.69]
[1688340166201,21.681,19.51,19.501,21.69]
[1688340166409,55.0,19.514,19.501,21.69]
[1688340166598,127.96954675,19.517,19.501,21.69]
[1688340166795,21.678,19.513,19.501,21.69]
[1688340167508,21.675,19.516,19.502,55.0]
[1688340167801,21.675,19.516,19.506,179.375]
[1688340169309,21.675,19.516,19.506,21.685]
[1688340169493,55.0,19.515,19.506,21.685]
[1688340169806,21.678,19.513,19.506,21.685]
[1688340171005,21.678,19.513,19.503,92.295]
[1688340171201,55.0,19.512,19.505,21.686]
[1688340171406,21.681,19.51,19.505,21.686]
[1688340175416,21.681,19.51,19.503,92.295]
[1688340175612,21.681,19.51,19.502,21.689]
[1688340176196,43.621,19.51,19.502,21.689]
[1688340176402,21.684,19.507,19.501,21.69]
[1688340179216,21.684,19.507,19.497,153.0829]
[1688340179429,21.684,19.507,19.498,20.0]
[1688340179430,55.0,19.506,19.498,20.0]
[1688340179617,21.688,19.504,19.499,21.692]
[1688340180999,55.0,19.506,19.499,21.692]
[1688340181200,55.0,19.507,19.499,21.692]
[1688340181410,76.684,19.507,19.499,21.692]
[1688340190426,55.0,19.507,19.499,21.692]
[1688340195426,76.684,19.507,19.499,21.692]
[1688340198335,55.0,19.507,19.499,21.692]
[1688340198635,21.683,19.508,19.499,21.692]
[1688340199043,21.682,19.509,19.499,21.692]
[1688340199229,55.0,19.508,19.499,21.692]
[1688340201032,76.683,19.508,19.499,21.692]
[1688340203549,55.0,19.508,19.498,20.0]
[1688340203747,21.683,19.508,19.499,21.692]
[1688340206958,43.622,19.51,19.499,21.692]
[1688340209874,55.0,19.509,19.499,21.692]
[1688340210159,21.685,19.506,19.499,21.692]
[1688340216164,55.0,19.509,19.499,21.692]
[1688340216356,21.684,19.508,19.499,21.692]
[1688340218565,76.682,19.509,19.499,21.692]
[1688340218768,43.621,19.51,19.499,21.692]
[1688340222566,55.0,19.509,19.499,21.692]
[1688340222756,21.685,19.506,19.499,21.692]
[1688340225966,21.684,19.507,19.499,21.692]
[1688340226156,55.0,19.506,19.499,21.692]
[1688340226763,21.684,19.507,19.499,21.692]
[1688340226966,21.682,19.509,19.499,21.692]
[1688340227164,55.0,19.508,19.499,21.692]
[1688340230477,76.683,19.508,19.499,21.692]
[1688340230877,55.0,19.508,19.499,21.692]
[1688340235067,21.684,19.507,19.499,21.692]
[1688340235268,55.0,19.506,19.499,21.692]
[1688340235471,76.686,19.506,19.499,21.692]
[1688340240185,55.0,19.506,19.499,21.692]
[1688340244568,76.685,19.506,19.499,21.692]
[1688340244775,76.685,19.506,19.473,591.3]
[1688340244776,76.685,19.506,19.498,21.694]
[1688340244973,76.685,19.506,19.496,21.695]
[1688340245173,76.685,19.506,19.491,55.87]
[1688340245980,76.685,19.506,19.487,150.5564]
[1688340245981,21.94,19.5,19.487,150.5564]
[1688340246183,21.696,19.497,19.491,21.701]
[1688340246389,21.696,19.497,19.49,21.703]
[1688340246688,55.0,19.496,19.49,21.703]
[1688340246883,21.698,19.495,19.49,21.703]
[1688340247190,55.0,19.494,19.49,21.703]
[1688340249683,21.693,19.499,19.49,21.703]
[1688340249881,76.694,19.498,19.49,21.703]
[1688340260294,26.81968335,19.497,19.49,21.703]
[1688340260502,55.0,19.496,19.49,21.703]
[1688340260698,76.697,19.496,19.49,21.703]
[1688340265399,21.684,19.507,19.49,43.643]
[1688340265605,21.687,19.504,19.49,43.643]
[1688340266696,43.627,19.504,19.49,43.643]
[1688340266897,21.693,19.5,19.49,43.643]
[1688340268015,55.0,19.499,19.49,21.703]
[1688340268199,21.696,19.497,19.49,21.703]
[1688340268405,76.694,19.499,19.49,43.593]
[1688340269320,55.0,19.499,19.49,43.593]
[1688340269807,76.693,19.499,19.49,43.593]
[1688340278913,76.693,19.499,19.49,21.703]
[1688340283623,76.693,19.499,19.487,21.705]
[1688340283821,76.693,19.499,19.488,20.0]
[1688340284025,76.693,19.499,19.488,41.705]
[1688340286620,102.72219113,19.499,19.488,41.705]
[1688340287625,26.82126932,19.498,19.488,41.705]
[1688340287829,21.697,19.495,19.488,41.705]
[1688340288028,55.0,19.494,19.488,41.705]
[1688340288237,76.699,19.494,19.488,41.705]
[1688340289730,55.0,19.494,19.488,41.705]
[1688340290828,76.699,19.494,19.488,41.705]
[1688340291028,76.699,19.494,19.48,47.10632959]
[1688340291029,76.699,19.494,19.47,21.94]
[1688340291326,76.699,19.494,19.471,21.724]
[1688340291327,21.94,19.48,19.471,21.724]
[1688340291533,21.717,19.478,19.471,21.724]
[1688340291931,55.0,19.477,19.471,21.724]
[1688340292228,76.718,19.477,19.471,21.724]
[1688340293632,76.718,19.477,19.461,91.3924]
[1688340293812,76.718,19.477,19.462,20.0]
[1688340294227,76.718,19.477,19.46,21.94]
[1688340297733,102.19247593,19.477,19.46,21.94]
[1688340299221,21.724,19.472,19.46,21.94]
[1688340301333,55.0,19.471,19.46,21.94]
[1688340301634,77.666,19.468,19.46,21.94]
[1688340305641,55.0,19.467,19.46,21.94]
[1688340305835,21.731,19.465,19.46,21.94]
[1688340306140,21.731,19.465,19.453,95.0723]
[1688340306341,21.731,19.465,19.454,20.0]
[1688340306544,55.0,19.464,19.454,20.0]
[1688340306851,21.735,19.462,19.454,20.0]
[1688340307745,21.733,19.463,19.454,20.0]
[1688340307932,21.732,19.464,19.454,20.0]
[1688340308136,55.936,19.469,19.454,20.0]
[1688340308337,21.729,19.467,19.46,21.94]
[1688340308530,21.728,19.468,19.46,21.94]
[1688340309847,21.726,19.469,19.461,21.734]
[1688340310147,21.721,19.475,19.461,21.734]
[1688340310331,25.47447593,19.477,19.47,21.94]
[1688340310536,21.718,19.477,19.472,21.723]
[1688340310841,21.718,19.477,19.47,21.94]
[1688340311032,21.718,19.477,19.471,21.724]
[1688340311643,21.716,19.478,19.471,21.724]
[1688340313644,21.714,19.481,19.471,21.724]
[1688340317145,21.711,19.483,19.471,21.724]
[1688340317453,55.879,19.489,19.471,32.56119922]
[1688340317758,21.706,19.487,19.477,179.643]
[1688340317934,21.706,19.487,19.481,21.712]
[1688340320842,55.0,19.486,19.481,21.712]
[1688340321043,21.709,19.485,19.481,21.712]
[1688340322657,22.17,19.5,19.481,179.608]
[1688340323149,21.7,19.493,19.481,179.608]
[1688340325053,55.0,19.492,19.481,179.608]
[1688340325249,21.704,19.489,19.481,179.608]
[1688340325451,21.704,19.489,19.481,77.612]
[1688340327550,55.0,19.488,19.481,77.612]
[1688340327752,76.706,19.488,19.481,77.612]
[1688340331366,76.706,19.488,19.481,21.712]
[1688340331664,76.706,19.488,19.479,21.714]
[1688340340070,21.706,19.488,19.479,21.714]
[1688340340869,25.20488819,19.493,19.479,21.714]
[1688340341063,55.862,19.495,19.479,21.714]
[1688340341264,157.78,19.496,19.479,21.714]
[1688340341265,55.861,19.496,19.479,21.714]
[1688340341469,26.82517018,19.496,19.479,21.714]
[1688340341872,26.82517018,19.496,19.479,117.2606]
[1688340342059,21.7,19.493,19.479,117.2606]
[1688340342260,21.7,19.493,19.479,128.09779922]
[1688340342966,21.7,19.493,19.48,21.84]
[1688340343261,21.699,19.494,19.483,77.602]
[1688340345369,21.699,19.494,19.484,20.0]
[1688340345574,51.26,19.508,19.484,20.0]
[1688340345575,101.878,19.504,19.487,21.706]
[1688340345774,21.695,19.498,19.488,20.0]
[1688340345971,21.695,19.498,19.491,21.702]
[1688340347668,21.692,19.5,19.491,21.702]
[1688340348784,55.831,19.506,19.491,21.702]
[1688340349075,21.688,19.504,19.491,21.702]
[1688340349973,55.0,19.503,19.491,21.702]
[1688340350170,76.689,19.503,19.491,21.702]
[1688340353574,21.689,19.503,19.491,21.702]
[1688340354782,55.0,19.502,19.491,21.702]
[1688340355089,21.69,19.502,19.491,21.702]
[1688340364594,21.694,19.498,19.491,21.702]
[1688340364995,21.693,19.499,19.491,21.702]
[1688340367394,47.79915843,19.506,19.491,21.702]
[1688340367592,55.811,19.513,19.492,75.0]
[1688340367808,21.681,19.511,19.498,179.451]
[1688340368211,21.681,19.511,19.498,190.28819922]
[1688340368810,21.681,19.511,19.499,90.0478]
[1688340369014,21.681,19.511,19.502,77.527]
[1688340371895,55.0,19.51,19.502,21.689]
[1688340372095,21.683,19.508,19.502,21.689]
[1688340372398,76.685,19.507,19.502,21.689]
[1688340372601,21.685,19.507,19.502,21.689]
[1688340375296,21.683,19.508,19.502,21.689]
[1688340375512,55.0,19.507,19.502,21.689]
[1688340376213,76.684,19.507,19.492,56.30400962]
[1688340376418,76.684,19.507,19.497,21.695]
[1688340377212,87.1641742,19.507,19.497,21.695]
[1688340377418,87.1641742,19.507,19.49,55.872]
[1688340377419,76.684,19.507,19.49,55.872]
[1688340377608,77.527,19.503,19.494,21.698]
[1688340377801,21.692,19.5,19.494,21.698]
[1688340378002,55.0,19.499,19.494,21.698]
[1688340378212,76.694,19.499,19.494,21.698]
[1688340379919,75.194,19.499,19.494,21.698]
[1688340387702,53.5,19.499,19.494,21.698]
[1688340387914,21.688,19.504,19.494,21.698]
[1688340389999,55.0,19.503,19.494,21.698]
[1688340390419,21.69,19.502,19.494,21.698]
[1688340392100,106.9735947,19.507,19.494,21.698]
[1688340392302,106.9735947,19.507,19.498,77.543]
[1688340392303,21.685,19.507,19.498,77.543]
[1688340392699,48.48640409,19.51,19.5,21.73]
[1688340392903,21.681,19.51,19.503,21.688]
[1688340410035,126.89504533,19.515,19.503,21.688]
[1688340410036,25.07504533,19.515,19.503,21.688]
[1688340410237,55.801,19.516,19.503,21.688]
[1688340411240,21.68,19.511,19.503,21.688]
[1688340412840,55.0,19.51,19.503,21.688]
[1688340413027,76.681,19.51,19.503,21.688]
[1688340416539,21.68,19.511,19.503,21.688]
[1688340425933,21.678,19.513,19.503,21.688]
[1688340427438,21.678,19.513,19.503,32.52519922]
[1688340430250,21.676,19.514,19.503,32.52519922]
[1688340438557,77.449,19.523,19.511,21.679]
[1688340439941,55.0,19.522,19.511,21.679]
[1688340440143,21.671,19.519,19.511,21.679]
[1688340441051,21.674,19.516,19.511,21.679]
[1688340443439,76.673,19.518,19.511,21.679]
[1688340445238,21.673,19.518,19.511,21.679]
[1688340453261,21.671,19.519,19.511,21.679]
[1688340453451,55.0,19.518,19.511,21.679]
[1688340454959,43.58,19.52,19.511,21.679]
[1688340455163,111.603,19.524,19.511,21.679]
[1688340455164,55.779,19.524,19.511,21.679]
[1688340455361,21.667,19.523,19.511,21.679]
[1688340462570,55.0,19.522,19.511,21.679]
[1688340462777,21.671,19.519,19.511,21.679]
[1688340480586,21.669,19.521,19.511,21.679]
[1688340480772,21.666,19.523,19.511,32.51619922]
[1688340481078,21.666,19.523,19.515,77.478]
[1688340482478,21.666,19.523,19.515,21.675]
[1688340488083,55.0,19.522,19.514,21.676]
[1688340488281,21.67,19.52,19.514,21.676]
[1688340488781,76.668,19.522,19.514,21.676]
[1688340488970,55.777,19.525,19.514,21.676]
[1688340489168,55.0,19.524,19.514,21.676]
[1688340489778,55.777,19.527,19.514,21.676]
[1688340490087,21.9,19.53,19.515,20.0]
[1688340490270,21.663,19.526,19.519,21.67]
[1688340490471,55.759,19.531,19.519,21.67]
[1688340490472,21.662,19.527,19.519,21.67]
[1688340490779,21.663,19.526,19.519,21.67]
[1688340492578,55.759,19.531,19.519,21.67]
[1688340493074,55.751,19.534,19.519,21.67]
[1688340493382,101.708,19.537,19.519,21.67]
[1688340493383,21.656,19.533,19.524,77.439]
[1688340493885,21.656,19.533,19.524,21.664]
[1688340498166,21.656,19.533,19.523,21.666]
[1688340498369,157.463,19.535,19.523,21.666]
[1688340498370,21.659,19.53,19.523,21.666]
[1688340500177,55.742,19.537,19.523,21.666]
[1688340500385,21.653,19.535,19.523,32.50319922]
[1688340500575,21.652,19.536,19.523,32.50319922]
[1688340500885,21.652,19.536,19.524,30.83719922]
[1688340501086,21.652,19.536,19.527,77.428]
[1688340501392,21.652,19.536,19.528,20.0]
[1688340501575,21.652,19.536,19.53,21.658]
[1688340502277,21.649,19.539,19.53,43.558]
[1688340502475,81.44765166,19.543,19.53,43.558]
[1688340503493,55.0,19.542,19.53,43.558]
[1688340503786,21.649,19.539,19.53,21.658]
[1688340504183,21.644,19.543,19.53,43.558]
[1688340504383,81.15419739,19.549,19.53,54.39519922]
[1688340504589,81.15419739,19.549,19.531,55.0]
[1688340504590,136.87019739,19.549,19.531,55.0]
[1688340504805,21.643,19.544,19.536,21.651]
[1688340507596,21.9,19.55,19.536,21.651]
[1688340507897,21.64,19.548,19.54,21.646]
[1688340508191,21.637,19.55,19.54,43.546]
[1688340508393,21.635,19.551,19.54,43.546]
[1688340509596,55.0,19.55,19.54,43.546]
[1688340510090,76.637,19.55,19.54,21.646]
[1688340511494,98.537,19.55,19.54,21.646]
[1688340515292,98.537,19.55,19.538,21.649]
[1688340515484,20.0,19.549,19.534,55.748]
[1688340515687,21.642,19.545,19.537,21.651]
[1688340515883,123.304,19.545,19.535,21.653]
[1688340516282,55.0,19.544,19.534,21.654]
[1688340516598,21.646,19.541,19.535,21.653]
[1688340517600,34.80262317,19.556,19.535,21.653]
[1688340517601,21.643,19.545,19.536,20.0]
[1688340517901,21.643,19.545,19.538,21.649]
[1688340519196,55.693,19.554,19.545,21.642]
[1688340519403,55.693,19.554,19.543,21.644]
[1688340519404,21.638,19.549,19.543,21.644]
[1688340524106,21.636,19.551,19.543,21.644]
[1688340525888,21.634,19.553,19.543,21.644]
[1688340526103,101.613,19.555,19.543,21.644]
[1688340526302,21.635,19.551,19.543,21.644]
[1688340529409,21.638,19.549,19.543,21.644]
[1688340533520,55.688,19.556,19.543,21.644]
[1688340533701,55.725,19.558,19.543,21.644]
[1688340534023,101.556,19.566,19.544,20.0]
[1688340534219,21.628,19.558,19.55,21.636]
[1688340535220,101.566,19.564,19.55,21.636]
[1688340535221,21.626,19.56,19.55,21.636]
[1688340535603,76.626,19.559,19.55,21.636]
[1688340535930,21.626,19.559,19.55,21.636]
[1688340537516,55.0,19.558,19.55,21.636]
[1688340537726,21.629,19.557,19.55,21.636]
[1688340537922,55.672,19.561,19.55,21.636]
[1688340537923,55.664,19.564,19.55,21.636]
[1688340538213,101.549,19.567,19.55,21.636]
[1688340538419,21.622,19.564,19.55,43.446]
[1688340539925,21.622,19.564,19.551,93.7569]
[1688340540219,21.622,19.564,19.554,21.631]
[1688340541520,21.625,19.561,19.554,21.631]
[1688340543118,21.623,19.562,19.554,21.631]
[1688340543299,21.622,19.563,19.554,21.631]
[1688340548217,21.622,19.563,19.551,93.7569]
[1688340548409,55.0,19.562,19.553,21.633]
[1688340548604,21.626,19.56,19.553,21.633]
[1688340552210,21.626,19.56,19.551,93.7569]
[1688340552521,21.629,19.557,19.551,21.635]
[1688340557822,21.629,19.557,19.547,55.711]
[1688340558012,55.0,19.556,19.549,21.637]
[1688340558326,21.632,19.554,19.549,21.637]
[1688340560420,21.63,19.556,19.549,21.637]
[1688340560828,55.673,19.561,19.549,21.637]
[1688340561121,55.0,19.56,19.549,21.637]
[1688340561317,21.628,19.558,19.549,21.637]
[1688340565830,21.626,19.559,19.549,21.637]
[1688340568618,21.626,19.56,19.549,32.47419922]
[1688340568819,21.624,19.561,19.549,32.47419922]
[1688340572024,21.624,19.561,19.55,55.0]
[1688340572224,21.624,19.561,19.553,21.633]
[1688340579636,21.624,19.561,19.548,55.708]
[1688340579843,21.624,19.561,19.553,21.632]
[1688340588244,21.624,19.561,19.553,32.46919922]
[1688340589150,157.223,19.565,19.553,32.46919922]
[1688340589151,21.623,19.563,19.554,10.83719922]
[1688340589353,21.623,19.563,19.556,21.629]
[1688340589737,21.623,19.563,19.556,32.46619922]
[1688340589938,21.623,19.563,19.557,20.0]
[1688340590142,21.623,19.563,19.558,21.627]
[1688340591036,21.621,19.565,19.558,21.627]
[1688340596850,21.619,19.566,19.558,21.627]
[1688340601362,21.618,19.567,19.558,21.627]
[1688340602450,21.621,19.564,19.558,21.627]
[1688340604460,21.621,19.564,19.553,55.692]
[1688340604765,55.0,19.563,19.556,21.629]
[1688340604949,21.624,19.561,19.556,21.629]
[1688340613373,21.621,19.564,19.557,20.0]
[1688340613566,21.62,19.565,19.559,21.626]
[1688340613763,21.8,19.57,19.559,21.626]
[1688340614277,21.618,19.567,19.559,21.626]
[1688340616375,21.621,19.564,19.559,21.626]
[1688340619165,21.621,19.564,19.558,21.627]
[1688340620059,21.621,19.564,19.557,21.628]
[1688340621075,21.621,19.564,19.555,21.63]
[1688340621076,55.0,19.563,19.555,21.63]
[1688340621266,21.625,19.561,19.554,21.632]
[1688340621583,21.625,19.561,19.553,21.633]
[1688340626598,21.625,19.561,19.547,96.3657]
[1688340626599,76.59,19.56,19.547,96.3657]
[1688340626781,21.63,19.557,19.551,21.635]
[1688340627597,21.63,19.557,19.547,96.3657]
[1688340627895,21.63,19.557,19.548,41.637]
[1688340628096,178.177,19.56,19.548,41.637]
[1688340628097,21.632,19.554,19.548,41.637]
[1688340634208,21.632,19.554,19.548,21.637]
[1688340634382,21.632,19.554,19.547,21.639]
[1688340636483,21.632,19.554,19.545,21.641]
[1688340637204,21.632,19.554,19.541,94.9868]
[1688340637406,21.59,19.55,19.541,94.9868]
[1688340637698,179.0,19.548,19.532,55.752]
[1688340637902,179.0,19.548,19.533,30.83719922]
[1688340638091,77.367,19.543,19.535,21.653]
[1688340638406,77.367,19.543,19.536,20.0]
[1688340638702,77.367,19.543,19.536,41.651]
[1688340639603,21.644,19.543,19.536,41.651]
[1688340641497,55.0,19.547,19.536,41.651]
[1688340641700,55.699,19.552,19.537,10.83719922]
[1688340641902,21.64,19.548,19.541,21.646]
[1688340644506,21.64,19.548,19.541,32.48319922]
[1688340645286,55.699,19.552,19.541,32.48319922]
[1688340645287,21.637,19.55,19.541,32.48319922]
[1688340645497,21.631,19.555,19.542,85.83719922]
[1688340645811,21.629,19.557,19.547,21.639]
[1688340646193,21.629,19.557,19.548,20.0]
[1688340646393,21.629,19.557,19.55,21.636]
[1688340657012,55.0,19.556,19.55,21.636]
[1688340657221,21.632,19.555,19.55,21.636]
[1688340658120,21.632,19.555,19.549,21.637]
[1688340661307,55.673,19.561,19.549,21.637]
[1688340661505,21.629,19.557,19.549,21.637]
[1688340671529,55.0,19.556,19.549,21.637]
[1688340671829,21.632,19.554,19.549,21.637]
[1688340672327,21.632,19.554,19.546,21.64]
[1688340672524,21.632,19.554,19.547,41.639]
[1688340673828,21.632,19.554,19.543,98.5248]
[1688340674010,21.636,19.551,19.544,21.642]
[1688340675115,21.634,19.552,19.544,21.642]
[1688340679752,21.634,19.552,19.543,98.5248]
[1688340681631,21.634,19.552,19.543,120.1688]
[1688340685830,21.634,19.552,19.543,131.00599922]
[1688340686649,21.82,19.56,19.543,131.00599922]
[1688340686650,21.626,19.56,19.544,10.83719922]
[1688340686946,21.66,19.57,19.548,178.987]
[1688340686947,21.625,19.561,19.548,178.987]
[1688340687141,21.623,19.562,19.55,21.73]
[1688340687324,21.623,19.562,19.554,21.632]
[1688340695237,21.622,19.563,19.554,21.632]
[1688340696656,77.288,19.563,19.554,21.632]
[1688340701342,21.622,19.563,19.554,21.632]
[1688340705737,21.622,19.563,19.549,93.5671]
[1688340706042,55.0,19.562,19.549,93.5671]
[1688340706352,178.901,19.559,19.549,93.5671]
[1688340706647,21.631,19.555,19.548,21.638]
[1688340706851,77.336,19.551,19.543,21.644]
[1688340707236,77.336,19.551,19.542,99.217]
[1688340707237,77.336,19.551,19.542,120.862]
[1688340707761,77.336,19.551,19.542,21.645]
[1688340709260,21.636,19.551,19.543,10.83719922]
[1688340709460,21.636,19.551,19.545,21.641]
[1688340710135,21.634,19.552,19.545,21.641]
[1688340710763,21.634,19.552,19.545,32.47819922]
[1688340715543,21.634,19.552,19.545,21.641]
[1688340715846,21.634,19.552,19.543,21.644]
[1688340716755,21.634,19.552,19.542,21.645]
[1688340716956,55.0,19.551,19.542,21.645]
[1688340717156,21.638,19.549,19.541,21.646]
[1688340719853,21.641,19.546,19.537,21.65]
[1688340720056,55.0,19.545,19.537,21.65]
[1688340720260,21.645,19.543,19.537,21.65]
[1688340720651,21.645,19.543,19.532,55.751]
[1688340721159,21.645,19.543,19.531,10.83719922]
[1688340721366,55.0,19.542,19.533,21.655]
[1688340721571,21.648,19.54,19.528,10.83719922]
[1688340721857,110.728,19.542,19.528,10.83719922]
[1688340721858,77.396,19.536,19.528,21.66]
[1688340722062,55.0,19.535,19.528,21.66]
[1688340722268,21.655,19.533,19.528,21.66]
[1688340723270,21.654,19.534,19.528,21.66]
[1688340723563,21.651,19.537,19.528,21.66]
[1688340723755,55.0,19.536,19.528,21.66]
[1688340723958,76.652,19.536,19.528,21.66]
[1688340730669,103.41671819,19.536,19.528,21.66]
[1688340733654,76.652,19.536,19.528,21.66]
[1688340734267,55.0,19.536,19.528,21.66]
[1688340735557,55.768,19.543,19.528,21.66]
[1688340735756,21.647,19.541,19.528,21.66]
[1688340736455,127.62703234,19.547,19.528,32.49719922]
[1688340736660,21.642,19.545,19.529,10.83719922]
[1688340736869,21.642,19.545,19.533,179.127]
[1688340737176,10.43811727,19.551,19.533,179.127]
[1688340737177,21.64,19.547,19.533,179.127]
[1688340737377,55.702,19.551,19.533,179.127]
[1688340737557,26.75312188,19.548,19.533,189.96419922]
[1688340737872,20.0,19.55,19.533,189.96419922]
[1688340738064,21.641,19.546,19.533,189.96419922]
[1688340738778,55.699,19.552,19.534,30.83719922]
[1688340739070,104.08210449,19.552,19.541,21.645]
[1688340740173,21.639,19.548,19.541,21.645]
[1688340743067,21.639,19.548,19.534,30.83719922]
[1688340743068,55.0,19.547,19.534,55.747]
[1688340743277,55.0,19.547,19.53,21.88]
[1688340743278,21.644,19.544,19.536,21.652]
[1688340752782,21.644,19.544,19.535,21.653]
[1688340752985,55.0,19.543,19.529,90.0676]
[1688340753167,21.649,19.539,19.532,21.655]
[1688340753481,21.649,19.539,19.529,90.0676]
[1688340753978,77.396,19.536,19.529,90.0676]
[1688340754173,77.396,19.536,19.522,55.781]
[1688340754365,21.657,19.532,19.527,21.662]
[1688340754566,21.657,19.532,19.528,20.0]
[1688340755378,21.657,19.532,19.528,41.66]
[1688340756982,21.655,19.533,19.528,41.66]
[1688340760979,21.654,19.534,19.528,41.66]
[1688340761287,21.653,19.536,19.528,41.66]
[1688340761487,81.13340486,19.543,19.528,41.66]
[1688340761686,21.649,19.539,19.528,41.66]
[1688340761992,21.648,19.54,19.528,41.66]
[1688340762176,21.645,19.543,19.534,77.4]
[1688340763495,21.648,19.54,19.534,77.4]
[1688340764281,21.648,19.54,19.534,21.653]
[1688340766999,21.648,19.54,19.532,21.655]
[1688340767295,21.648,19.54,19.53,21.658]
[1688340767478,21.648,19.54,19.528,75.765]
[1688340768079,21.648,19.54,19.531,21.657]
[1688340773198,21.648,19.54,19.53,21.658]
[1688340773402,55.0,19.539,19.529,21.659]
[1688340773694,21.652,19.536,19.529,21.659]
[1688340781401,21.65,19.538,19.529,21.659]